Cogmind - Beta 16 *** ADVENTURER MODE // 2026.01.31 @ 16:39:27 Player: Armok Result: Destroyed by D-53 Grenadier with Mini Grenade Launcher Performance ------------- Evolutions (0) 0 Regions Visited (2) 400 Robots Destroyed (29) 145 Value Destroyed (486) 486 Prototype IDs (2) 40 Alien Tech Used (0) 0 Bonus (0) 0 TOTAL SCORE: 1071 Bonus ------- None Cogmind --------- Core Integrity 0/250 Matter 255/300 Energy 99/100 System Corruption 2% Temperature Cool (14) Movement Rolling (160) Ox4 Location -10/Mines Parts ------- > --- POWER (1) -------- (None) > --- PROPULSION (2) --- Compact Wheel > --- UTILITY (2) ------ Huge Storage Unit Visual Processing Unit > --- WEAPON (2) ------- (None) > --- INVENTORY (25) --- Light Ion Engine Light Ion Engine Huge Storage Unit Medium Battery (150) Small Matter Pod (50) Visual Processing Unit Improved Terrain Scanner Particle Gun Assault Rifle Datajack Plasma Cutter Heavy Hammer Heavy Hammer Peak State ------------ > --- POWER ------------ Light Ion Engine > --- PROPULSION ------- Light Treads Light Treads > --- UTILITY ---------- Medium Storage Unit Visual Processing Unit > --- WEAPON ----------- Particle Gun Heavy Hammer > --- INVENTORY -------- Ion Engine Light Ion Engine Light Ion Engine Small Matter Pod Small Laser Particle Gun Datajack Heavy Hammer [Rating: 11] Favorites ----------- Power Ion Engine Engine Ion Engine Propulsion Light Treads Treads Light Treads Wheel Compact Wheel Utility Visual Processing Unit Storage Huge Storage Unit Processor Visual Processing Unit Weapon Heavy Hammer Energy Gun Particle Gun Ballistic Gun Assault Rifle Launcher Grenade Launcher Impact Weapon Heavy Hammer Build | -11 -10 -10 ------- Run | Yrd Mat Min Slots Evolved . | . . . Power . | . . . Propulsion . | . . . Utility . | . . . Weapon . | . . . Parts Attached 19 | 6 10 3 Power 3 | 1 2 . Engine 3 | 1 2 . Core . | . . . Reactor . | . . . Propulsion 3 | 2 1 . Treads 2 | 2 . . Leg . | . . . Wheel 1 | . 1 . Hover . | . . . Flight . | . . . Utility 5 | 1 4 . Device . | . . . Storage 4 | 1 3 . Processor 1 | . 1 . Hackware . | . . . Protection . | . . . Artifact . | . . . Weapon 8 | 2 3 3 Energy Gun 3 | 2 1 . Energy Cannon . | . . . Ballistic Gun 2 | . 1 1 Ballistic Cannon . | . . . Launcher 2 | . . 2 Special Weapon . | . . . Impact Weapon 1 | . 1 . Slashing Weapon . | . . . Piercing Weapon . | . . . Special Melee Weapon . | . . . Unidentified Prototypes . | . . . Parts Lost 6 | . 3 3 Power 2 | . 1 1 Propulsion . | . . . Utility . | . . . Weapon 4 | . 2 2 Highest Loss Streak 3 | . 2 3 To Critical Strikes . | . . . Average Backups 9 | 2 8 12 Power 2 | 1 2 2 Propulsion . | . . . Utility 2 | . 2 4 Weapon 2 | . 2 4 Tool/Special . | . . . Unused Backups 13 | . 3 10 Power 2 | . 1 1 Propulsion . | . . . Utility 6 | . . 6 Weapon 3 | . 2 1 Tool/Special 2 | . . 2 Average Slot Usage (%) 86 | . 86 85 Engine 13 | . 13 14 Treads 11 | . 16 . Wheel 9 | . 8 14 Storage 14 | . 14 14 Processor 10 | . 9 14 Energy Gun 8 | . 11 1 Ballistic Gun 6 | . 3 12 Impact Weapon 10 | . 8 13 Peak Build Rating 11 | 6 11 10 Average Rating 8 | 5 8 9 On Entrance 5 | . 6 10 Avg Prop Armor Cover (%) 15 | . 15 . Naked Turns . | . . . Heaviest Build 91 | 12 91 91 Greatest Support 40 | 40 40 16 Greatest Overweight (x) 5 | . 5 5 Average Overweight (x) 2 | . 1 4 Largest Inventory Capacity 25 | 8 25 25 Average Capacity 16 | 7 13 25 Most Carried 14 | 5 13 14 Average Carried 9 | 2 8 12 Final Capacity 25 | 8 25 25 Final Carried 13 | 3 13 13 Class Distribution -------------------- 100% | Mutant Dominant Class ---------------- Mutant | -10/Materials Mutant | -10/Mines Resources | -11 -10 -10 ----------- Run | Yrd Mat Min Matter Collected 561 | 260 165 136 Remotely . | . . . Salvage Created 1071 | 160 277 634 Parts 28 | 5 19 4 Haulers Intercepted . | . . . Recyclers Shooed 3 | . . 3 Parts Field Recycled . | . . . Retrieved Matter . | . . . Parts Self-Destructed . | . . . Prevented . | . . . Parts Restored . | . . . Kills | -11 -10 -10 ------- Run | Yrd Mat Min Combat Hostiles Destroyed 14 | . 9 5 Melee 3 | . . 3 Guns 9 | . 9 . Classes Destroyed 6 | 3 3 . Worker 4 | 2 . 2 Tunneler 2 | 1 . 1 Recycler 6 | 1 . 5 Watcher 3 | . 3 . Swarmer 6 | . 6 . Grunt 8 | . 3 5 Best Kill Streak 4 | 2 4 3 Combat Bots Only 4 | . 4 2 Max Kills in Single Turn 1 | 1 1 1 Gunslinging . | . . . Exploded . | . . . Melee 1 | . . 1 Uniques/NPCs Destroyed . | . . . Combat | -11 -10 -10 -------- Run | Yrd Mat Min Hostile Shots Fired 128 | . 97 31 Missed 32 | . 26 6 Hits 96 | . 71 25 Projectile 96 | . 71 25 AOE 8 | . . 8 Damage Taken 1026 | . 554 472 Core 253 | . 97 156 Absorbed by Shields . | . . . Ignored by Resistances 298 | . 165 133 Regen/Repaired (Parts) 24 | . 24 . Core Remaining (%) 100 | 100 . . Volleys Fired 55 | 6 33 16 Largest 2 | 2 2 2 Hottest 100 | 100 100 65 Shots Fired 76 | 12 46 18 Gun 72 | 12 46 14 Cannon . | . . . Launcher 4 | . . 4 Special . | . . . Kinetic 27 | . 15 12 Thermal 45 | 12 31 2 Explosive 4 | . . 4 Electromagnetic . | . . . Robot Hit Streak 24 | 9 24 9 Robot Miss Streak 3 | 1 3 1 Penetration Max . | . . . Secondary Targets 3 | . 3 . Max Gunslinging Chain 1 | . 1 . Shots Hit Robots 84 | 9 39 36 Core Hits 36 | 5 17 14 Critical Kills 1 | . . 1 Critical Parts Destroyed 2 | . . 2 Critical Strikes 6 | 1 2 3 Burn 3 | 1 2 . Smash 3 | . . 3 Melee Attacks 23 | . 2 21 Impact 23 | . 2 21 Slashing . | . . . Piercing . | . . . Sneak Attacks 8 | . . 8 Combat Hostiles 1 | . . 1 Follow-up Attacks . | . . . Damage Inflicted 2022 | 112 517 1393 Guns 676 | 112 406 158 Cannons . | . . . Explosions 114 | . . 114 Melee 1230 | . 109 1121 Ramming 2 | . 2 . Kinetic 241 | . 117 124 Thermal 435 | 112 289 34 Explosive 114 | . . 114 Electromagnetic . | . . . Impact 1230 | . 109 1121 Slashing . | . . . Piercing . | . . . Highest Corruption 2 | . 2 2 Average Corruption 1 | . 1 2 Corruption Purged . | . . . Corruption Blocked . | . . . Effects 22 | . 11 11 Message Errors 4 | . 2 2 Matter Fused 5 | . 3 2 Heat Flow Errors 5 | . 2 3 Energy Discharges 3 | . 1 2 Parts Fused 2 | . 2 . Data Loss (minor) 2 | . . 2 Data Loss (major) 1 | . 1 . Overload Shots . | . . . Overflow Damage 476 | . 43 433 Projectiles 25 | . . 25 Explosions . | . . . Melee 451 | . 43 408 Knockbacks 5 | . . 5 Impact 4 | . . 4 Kinetic . | . . . Secondary 1 | . . 1 Self-Inflicted Damage . | . . . Shots . | . . . Rammed 1 | . 1 . Targets Rammed 1 | . 1 . Kicked . | . . . Crushed . | . . . Highest Temperature 318 | 78 318 178 Average Temperature 103 | 39 136 62 Received Heat Transfer 387 | . 228 159 Effects 2 | . 2 . Interference 1 | . 1 . Matter Decay 1 | . 1 . Siege Activations . | . . . Martial Activations . | . . . Shielding Activations . | . . . Robots Disrupted . | . . . Combat Hostiles . | . . . Robots Corrupted 6 | . 1 5 Combat Hostiles 2 | . . 2 Parts Fried 14 | . . 14 Impact Corruptions 19 | . 2 17 Robots Melted . | . . . Combat Hostiles . | . . . Parts Melted 2 | 1 1 . Heat Transferred 1480 | 407 999 74 Parts Sabotaged . | . . . Parts Stolen . | . . . Parts Stripped . | . . . Power Chain Reactions . | . . . Alert | -11 -10 -10 ------- Run | Yrd Mat Min Maximum Alert Level . | . . . Low Security (%) 100 | 100 100 100 Level 1 . | . . . Level 2 . | . . . Level 3 . | . . . Level 4 . | . . . Level 5 . | . . . High Security . | . . . Max Security . | . . . Peak Influence 156 | 10 156 50 Initial 2 | . 2 . Average 23 | 1 29 13 Influence Increases 556 | 20 326 210 Destroy 0b10 Robot/C 280 | . 180 100 Destroy 0b10 Robot/NC 75 | 20 15 40 Destroy Leader 66 | . 36 30 Successful Hack 49 | . 49 . Destroy Structure 11 | . 1 10 Partial Spotted 30 | . 15 15 Lose Combat Pursuer 45 | . 30 15 Influence Decreases 541 | 15 331 195 Entered New Map 3 | . 3 . Time Decay 478 | 15 298 165 Lost Part 60 | . 30 30 Squads Dispatched 1 | . 1 . Investigation 1 | . 1 . Extermination . | . . . Reinforcement . | . . . Assault . | . . . Garrison . | . . . Intercept . | . . . Searches Triggered . | . . . Construction Impeded . | . . . Haulers Reinforced . | . . . Active Scanning Responses . | . . . Cargo Convoy Interrupts . | . . . Stealth | -11 -10 -10 --------- Run | Yrd Mat Min Distress Signals 2 | . 2 . Communications Jammed . | . . . Distress Signals . | . . . Times Spotted 31 | . 23 8 Peak Tracking Total 11 | . 11 2 Tactical Retreats 3 | . 2 1 Traps | -11 -10 -10 ------- Run | Yrd Mat Min Traps Triggered 5 | . 5 . Indirectly . | . . . Trap Hack Attempts . | . . . Triggered . | . . . Disarmed . | . . . Reprogrammed . | . . . Reused . | . . . Traps Extracted . | . . . Installed . | . . . Triggered . | . . . Machines | -11 -10 -10 ---------- Run | Yrd Mat Min Machines Disabled . | . . . Max in Single Turn . | . . . Machines Repaired . | . . . Machines Dismantled . | . . . Machines Sabotaged . | . . . Overloaded Fab Kills . | . . . Hacking | -11 -10 -10 --------- Run | Yrd Mat Min Machines Accessed 9 | . 9 . Terminals 7 | . 7 . Fabricators . | . . . Repair Stations 1 | . 1 . Recycling Units 1 | . 1 . Scanalyzers . | . . . Garrison Access . | . . . Total Hacks 32 | . 32 . Successful 26 | . 26 . Failed 6 | . 6 . Catastrophic . | . . . Database Lockouts . | . . . Manual 3 | . 3 . Terminals 26 | . 26 . Fabricators . | . . . Repair Stations 4 | . 4 . Recycling Units 2 | . 2 . Scanalyzers . | . . . Garrison Access . | . . . Terminal Hacks 20 | . 20 . Record 10 | . 10 . Part Schematic 1 | . 1 . Robot Analysis 1 | . 1 . Prototype ID Bank 1 | . 1 . Level Access Points 1 | . 1 . Terminal Index 1 | . 1 . Alert Level 1 | . 1 . Locate Traps 2 | . 2 . Surveillance Status 1 | . 1 . Hauler Manifests 1 | . 1 . Fabricator Hacks . | . . . Repair Station Hacks 3 | . 3 . Scan Component 2 | . 2 . Repair 1 | . 1 . Recycling Unit Hacks 1 | . 1 . Report Inventory 1 | . 1 . Scanalyzer . | . . . Garrison Access Hacks . | . . . Unauthorized Hacks 2 | . 2 . Terminals 2 | . 2 . Operators 2 | . 2 . Fabricators . | . . . Repair Stations . | . . . Recycling Units . | . . . Scanalyzers . | . . . Garrison Access . | . . . Data Cores Recovered . | . . . Used . | . . . Hacking Detections 8 | . 8 . Full Trace Events 2 | . 2 . Feedback Events . | . . . Feedback Blocked . | . . . Robot Schematics Acquired . | . . . Robots Built . | . . . Authchips . | . . . Time . | . . . Total Robot Build Rating . | . . . Part Schematics Acquired 1 | . 1 . Parts Built . | . . . Authchips . | . . . Time . | . . . Total Part Build Rating . | . . . Part Studies Acquired . | . . . Parts Repaired 1 | . 1 . Time 18 | . 18 . Parts Recycled . | . . . Recycled Matter . | . . . Retrieved Matter . | . . . Retrieved Components . | . . . Parts Scanalyzed . | . . . Part Schematics Acquired . | . . . Parts Damaged . | . . . Bothacking | -11 -10 -10 ------------ Run | Yrd Mat Min Used RIF Installer . | . . . Robots Hacked . | . . . Non-combat . | . . . Combat . | . . . Robot Hacks Applied . | . . . Relay Couplers Released . | . . . Fabnet Peak Effective % . | . . . Robots Rewired . | . . . Allies Hacked . | . . . Hacks Repelled . | . . . Allies | -11 -10 -10 -------- Run | Yrd Mat Min Total Allies . | . . . Largest Group . | . . . Highest-Rated Group . | . . . Highest-Rated Ally . | . . . Total Orders . | . . . Ally Attacks . | . . . Total Damage . | . . . Kills . | . . . Allies Corrupted . | . . . Allies Melted . | . . . Intel | -11 -10 -10 ------- Run | Yrd Mat Min Active Infowar (turns) 1338 | . 806 532 Optics 1338 | . 806 532 Robot Analysis Total 1 | . 1 . Derelict Logs Recovered 1 | . . 1 Drone Launches . | . . . Drone Recoveries . | . . . Exploration | -11 -10 -10 ------------- Run | Yrd Mat Min Turns Passed 1895 | 131 1232 532 Spaces Moved 1039 | 71 726 242 Core 13 | 13 . . Treads 312 | 58 254 . Legs . | . . . Wheels 714 | . 472 242 Hover . | . . . Flight . | . . . Fastest Speed 50 | 50 115 160 Average Speed 152 | 139 146 174 Slowest Speed 175 | 160 175 175 Overloaded Moves . | . . . Propulsion Burnouts . | . . . Robots Hopped . | . . . Potential Cave-ins . | . . . Cave-ins Triggered . | . . . Exploration Rate (%) 50 | 4 99 49 Regions Visited 2 Branch Regions 1 Pre-discovered Areas . | . . . Known Exits Taken . | . . . Unknown Exits Taken 2 | 1 1 . Scrap Searched 1 | . . 1 Spaces Dug . | . . . Terrain Destroyed 13 | . . 13 Melee . | . . . Projectile . | . . . AOE 13 | . . 13 Terrain Rammed . | . . . Walls Destroyed . | . . . Machines Disabled . | . . . Actions | -11 -10 -10 --------- Run | Yrd Mat Min Total 1240 | 91 852 297 Wait 55 | . 44 11 Move 1037 | 70 725 242 Hop . | . . . Pick Up 36 | 9 25 2 Fast Attach . | . . . Attach 12 | 6 6 . Detach . | . . . Swap 8 | . 5 3 Drop 13 | . 11 2 Fire 55 | 6 33 16 Melee 23 | . 2 21 Ram . | . . . Kick . | . . . Crush 1 | . 1 . Escape Stasis . | . . . Rewire . | . . . Trap . | . . . Miscellaneous . | . . . Route ------- -11/Scrapyard -10/Materials (discovered 6 exits: *Mat x3 / [*Min x2] / [*Sub]) -10/Mines (discovered 1 exit: *Mat) History --------- Turn | Location | Event 4 | -11/Scrapyard | Discovered new exit (range 16) 132 | -11/Scrapyard | Entered Materials 308 | -10/Materials | Build established: Mutant 418 | -10/Materials | Discovered new exit (range 8) 434 | -10/Materials | Discovered new exit (range 10) 532 | -10/Materials | Discovered new exit (range 15) 654 | -10/Materials | Identified exit to Materials 664 | -10/Materials | Discovered new exit (range 18) 757 | -10/Materials | Repaired Broken Ion Engine 869 | -10/Materials | Discovered new exit (range 11) 1364 | -10/Materials | Entered Mines 1601 | -10/Mines | Discovered exit to Materials (range 6) 1741 | -10/Mines | Core integrity fell below 50% 1874 | -10/Mines | Assembled infested the area 1894 | -10/Mines | Core integrity fell below 20% 1896 | -10/Mines | Destroyed by D-53 Grenadier with Mini Grenade Launcher Last Messages --------------- 01845_ Particle Gun fried. 01845_ Aluminum Leg fried. 01849_ Destroyed Heat Sink. 01849_ G-34 Mercenary system corrupted by crushing effect. 01852_ G-34 Mercenary misfires. 01855_ G-34 Mercenary destroyed. 01869_ System corrupted: Energy discharge (-82). 01874_ ALERT: Infestation in the mines, dispatching Demolisher response squad. 01879_ K-01 Serf collects debris. 01890_ K-01 Serf destroyed. 01891_ C-45 Heavy ARC bursts open, deploying its payload. 01891_ D-53 Grenadier unfolds itself. 01891_ Plasma Injector explodes. 01891_ Laser Drill disabled. 01891_ Plasma Injector explodes. 01894_ Ion Engine destroyed. 01895_ Grenade Launcher destroyed. Map ----- +----------------------------------------------------+ | ?????????????????????????????????????????????????? | | ?????????????????????????????????????????????????? | | ?????????????????????????????????????????????????? | | ?????????????????????????????????????????????????? | | ?????????????????????????????????????????????????? | | ?????????????????????????????????????????????????? | | ?????????????????????????????????????????????????? | | ?????????????????????????????????????????????????? | | ?????????????????????????????????????????????????? | | ?????????????????????????????????????????????????? | | ?????????????????????????????????????????????????? | | ?????????????????????????????????????????????????? | | ?????????????????????????????????????????????????? | | ???????????????????##??#########?????????????????? | | ?????????????????###;###;;;;#;;##????????????????? | | ????????????????## ;##???????????????? | | ????????????????#; ; ?????????????#??? | | ????????????????#; ;#????????#### #??? | | ????????????????## ;##???????# ????? | | ????????????????#; ; #???????# #?????? | | ????????????????#; #???????# #?????? | | ?????????????????# #???????# #?????? | | ?????????????????# #????????# #?????? | | ?????????????????# ##????????# #?????? | | ?????????????????# ;#????????# ####### | | ?????????????????#### @ ;##????????# # | | ???????????????????## ##?????????# ##### # | | ??????????????????## ##??????????# #???# # | | ??????????????????# #######??????# #???# # | | ?????? ### #??????# #???# # | | ???????????# t #??????# #???# # | | ??????????# ### #??????# #???# # | | ??????????# ##### #?# ######## ##??# # | | ?????????# ?????## dd #?# #??# # | | ??????????? ???????# #?########### #??# # | | ???????????? ????????# ##???????????# #??# # | | ?????????????????????# ????????????# #?## # | | ?????????????????????##### #????????????# ### # | | ?????????????????????????# ###????????????# ## | | ?????????????????????????# #??????????????# ## | | ?????????????????????????# #??????????????# | | ?????????????????????????# #?????????????## ### | | ?????????????????????????# #????????????## ### | | ?????????????????????????# ????????????# #### | | ?????????????????????????###????????????# ### | | ????????????????????????????????????????## % #? | | ?????????????????????????????????????????# # #? | | ?????????????????????????????????????????# ##% ##? | | ?????????????????????????????????????????# #####?? | | ?????????????????????????????????????????# #?????? | +----------------------------------------------------+ Best States ------------- Heat Dissipation 25 Energy Generation 10 Energy Capacity 250 Matter Stores 300 Matter Capacity 300 Sight Range 18 Terrain Scan Density 10 Resistance: KI 20 Resistance: TH 20 Resistance: EX 20 Resistance: EM 20 Resistance: I 20 Resistance: S 20 Resistance: P 20 Evasion (%) 50 Recoil Reduction 2 Offensive Hacking 10 Item Schematics ----------------- Datajack | -10/Materials | Hacked Robot Schematics ------------------ None Fabricated ------------ Nothing Repaired ---------- Ion Engine | 60% | -10/Materials | Broken Studied --------- None Alien Tech Used ----------------- None Achievements -------------- None Challenges ------------ None Game ------ Seed LightpackHugeWand Manual? 0 Play Time 00:16:36 Cumulative 72.9 hours Start 2026.01.31 @ 16:24:29 End 2026.01.31 @ 16:39:27 Sessions 1 Manual Loads 0 Difficulty Adventurer Special Mode None Game No. 110 Rogue 83 Adventurer 26 Explorer 1 Win Type - Total 0 Types 0/0/0/0/0/0/0/0/0/0 Lore% 16 Gallery% 39 Achievement% 29 Wizard Run 0 Options --------- Layout 1 ASCII 0 Keyboard 0 Movement Numpad Keybinds 0 Fullscreen 1 Font 24/Smallcaps Map View 50x35 Zoom Use 0% Tactical HUD 1 Map Filters NONE Filters NONE Steam 1 RUN: 6efe6060-287e-4194-b960-d42110241b1b